[Event "*** Titled Tuesday 3|2 Blitz (Early)"]
[Site "Chess.com"]
[Date "2017.01.03"]
[Round "5"]
[White "Pierrebl"]
[Black "AndrBaryshpolets"]
[Result "0-1"]
[WhiteElo "2468"]
[BlackElo "2431"]
[TimeControl "180+2"]
[EndTime "12:04:25 PST"]
[Termination "AndrBaryshpolets won on time"]

1. e4 {[%clk 0:03:02]} 1... e5 {[%clk 0:03:00.6]} 2. Nf3 {[%clk 0:03:02.6]} 2...
Nc6 {[%clk 0:03:01.7]} 3. Bb5 {[%clk 0:03:01]} 3... Nf6 {[%clk 0:03:02.7]} 4.
O-O {[%clk 0:03:01.1]} 4... Nxe4 {[%clk 0:03:03.1]} 5. Qe2 {[%clk 0:03:01.8]}
5... Nd6 {[%clk 0:03:03]} 6. Bxc6 {[%clk 0:03:03.3]} 6... dxc6 {[%clk
0:03:04.9]} 7. Qxe5+ {[%clk 0:03:01.2]} 7... Qe7 {[%clk 0:03:01.9]} 8. Qa5
{[%clk 0:03:02.6]} 8... Qd8 {[%clk 0:02:39.9]} 9. Qc3 {[%clk 0:03:00]} 9... Qf6
{[%clk 0:02:26.3]} 10. Re1+ {[%clk 0:02:53.5]} 10... Be7 {[%clk 0:02:03.8]} 11.
Qxf6 {[%clk 0:02:24.5]} 11... gxf6 {[%clk 0:02:05.7]} 12. d3 {[%clk 0:02:23.6]}
12... h5 {[%clk 0:01:49.1]} 13. Nc3 {[%clk 0:02:20.2]} 13... Bg4 {[%clk
0:01:37]} 14. Nh4 {[%clk 0:01:53.8]} 14... Kd7 {[%clk 0:01:26.7]} 15. Bf4 {[%clk
0:01:48.1]} 15... Be6 {[%clk 0:00:54.2]} 16. g3 {[%clk 0:01:41.7]} 16... Rag8
{[%clk 0:00:41.8]} 17. Ne4 {[%clk 0:01:40.3]} 17... b6 {[%clk 0:00:36.9]} 18. c4
{[%clk 0:01:24.8]} 18... f5 {[%clk 0:00:36]} 19. Nxd6 {[%clk 0:01:25.3]} 19...
cxd6 {[%clk 0:00:36.7]} 20. Nf3 {[%clk 0:01:24.1]} 20... h4 {[%clk 0:00:34.8]}
21. Kg2 {[%clk 0:01:23.4]} 21... Bf6 {[%clk 0:00:34.5]} 22. Rab1 {[%clk
0:01:21.6]} 22... b5 {[%clk 0:00:30.9]} 23. b3 {[%clk 0:01:22.6]} 23... h3+
{[%clk 0:00:19.8]} 24. Kf1 {[%clk 0:01:20]} 24... Rb8 {[%clk 0:00:21.3]} 25. Be3
{[%clk 0:01:17.9]} 25... c5 {[%clk 0:00:21.5]} 26. Rbd1 {[%clk 0:01:09.5]} 26...
Kc6 {[%clk 0:00:19.3]} 27. Bf4 {[%clk 0:00:55.6]} 27... a5 {[%clk 0:00:15.7]}
28. d4 {[%clk 0:00:42.9]} 28... bxc4 {[%clk 0:00:16.4]} 29. dxc5 {[%clk
0:00:44.3]} 29... d5 {[%clk 0:00:16.6]} 30. bxc4 {[%clk 0:00:44.6]} 30... Rbd8
{[%clk 0:00:11.8]} 31. Nd4+ {[%clk 0:00:39.3]} 31... Bxd4 {[%clk 0:00:12.1]} 32.
Rxd4 {[%clk 0:00:41.2]} 32... Kxc5 {[%clk 0:00:13.4]} 33. Be3 {[%clk 0:00:41.7]}
33... Kc6 {[%clk 0:00:14.3]} 34. cxd5+ {[%clk 0:00:42.6]} 34... Rxd5 {[%clk
0:00:16.2]} 35. Rc1+ {[%clk 0:00:43.3]} 35... Kd7 {[%clk 0:00:16.3]} 36. Rxd5+
{[%clk 0:00:44.4]} 36... Bxd5 {[%clk 0:00:18.2]} 37. Rc5 {[%clk 0:00:45.3]}
37... Ke6 {[%clk 0:00:19.5]} 38. Rxa5 {[%clk 0:00:46]} 38... Rb8 {[%clk
0:00:21.1]} 39. Ra6+ {[%clk 0:00:45.6]} 39... Kd7 {[%clk 0:00:21.6]} 40. Ra7+
{[%clk 0:00:38]} 40... Ke8 {[%clk 0:00:22.2]} 41. a4 {[%clk 0:00:36.9]} 41...
Bf3 {[%clk 0:00:21.7]} 42. Ke1 {[%clk 0:00:37.6]} 42... Rd8 {[%clk 0:00:23.3]}
43. Bd2 {[%clk 0:00:37.8]} 43... Rb8 {[%clk 0:00:24.4]} 44. Bc3 {[%clk
0:00:34.4]} 44... Rd8 {[%clk 0:00:24.6]} 45. Bd2 {[%clk 0:00:35]} 45... Rd3
{[%clk 0:00:26.3]} 46. Rc7 {[%clk 0:00:31.6]} 46... Ra3 {[%clk 0:00:25.8]} 47.
Rc3 {[%clk 0:00:29.7]} 47... Ra1+ {[%clk 0:00:26.5]} 48. Bc1 {[%clk 0:00:31.2]}
48... Bg2 {[%clk 0:00:21.7]} 49. Rc4 {[%clk 0:00:30.6]} 49... Bd5 {[%clk
0:00:21.4]} 50. Rc5 {[%clk 0:00:31.2]} 50... Bb7 {[%clk 0:00:18.9]} 51. a5
{[%clk 0:00:32.3]} 51... Kd7 {[%clk 0:00:20.3]} 52. Ke2 {[%clk 0:00:32.1]} 52...
Ra2+ {[%clk 0:00:20.1]} 53. Ke3 {[%clk 0:00:30.2]} 53... Ra4 {[%clk 0:00:21.1]}
54. Bd2 {[%clk 0:00:29.1]} 54... Re4+ {[%clk 0:00:21.7]} 55. Kd3 {[%clk
0:00:29.1]} 55... Ba6+ {[%clk 0:00:23.5]} 56. Kc3 {[%clk 0:00:30.1]} 56... Ra4
{[%clk 0:00:24.1]} 57. Be3 {[%clk 0:00:30.4]} 57... Ra1 {[%clk 0:00:23.8]} 58.
Rxf5 {[%clk 0:00:31.1]} 58... Ke6 {[%clk 0:00:23.9]} 59. Rh5 {[%clk 0:00:31.4]}
59... Bf1 {[%clk 0:00:22.7]} 60. Rh6+ {[%clk 0:00:29.6]} 60... Kf5 {[%clk
0:00:22.8]} 61. Bb6 {[%clk 0:00:30.1]} 61... Bg2 {[%clk 0:00:22.5]} 62. Bd8
{[%clk 0:00:27.2]} 62... Rh1 {[%clk 0:00:22.6]} 63. Bc7 {[%clk 0:00:27.3]} 63...
Rc1+ {[%clk 0:00:23]} 64. Kb4 {[%clk 0:00:26.3]} 64... Rxc7 {[%clk 0:00:24.9]}
65. a6 {[%clk 0:00:27.8]} 65... Rc2 {[%clk 0:00:23.7]} 66. Ka5 {[%clk
0:00:24.9]} 66... Rxf2 {[%clk 0:00:21.4]} 67. a7 {[%clk 0:00:24.7]} 67... Ra2+
{[%clk 0:00:21.8]} 68. Kb6 {[%clk 0:00:26.1]} 68... Kg5 {[%clk 0:00:22.4]} 69.
Rd6 {[%clk 0:00:26.3]} 69... Be4 {[%clk 0:00:20.2]} 70. Rd8 {[%clk 0:00:22.8]}
70... f5 {[%clk 0:00:21]} 71. Rg8+ {[%clk 0:00:21.4]} 71... Kf6 {[%clk
0:00:22.1]} 72. Rh8 {[%clk 0:00:23.3]} 72... Rxh2 {[%clk 0:00:22.2]} 73. a8=Q
{[%clk 0:00:23.4]} 73... Bxa8 {[%clk 0:00:22.7]} 74. Rxa8 {[%clk 0:00:25.3]}
74... Rg2 {[%clk 0:00:23.8]} 75. Kc5 {[%clk 0:00:25.9]} 75... Rxg3 {[%clk
0:00:22.9]} 76. Kd4 {[%clk 0:00:27.8]} 76... Kg5 {[%clk 0:00:20.8]} 77. Rh8
{[%clk 0:00:16]} 77... Kf4 {[%clk 0:00:21.5]} 78. Rh4+ {[%clk 0:00:14.9]} 78...
Kg5 {[%clk 0:00:21.3]} 79. Ke5 {[%clk 0:00:16.8]} 79... Kxh4 {[%clk 0:00:22]}
0-1

[Event "*** Titled Tuesday 3|2 Blitz (Early)"]
[Site "Chess.com"]
[Date "2017.01.03"]
[Round "5"]
[White "Mazetovic"]
[Black "Tash_Boy"]
[Result "1-0"]
[WhiteElo "2471"]
[BlackElo "2442"]
[TimeControl "180+2"]
[EndTime "12:04:47 PST"]
[Termination "Mazetovic won by resignation"]

1. e4 {[%clk 0:03:02]} 1... c5 {[%clk 0:02:55.8]} 2. Nf3 {[%clk 0:03:00.3]} 2...
d6 {[%clk 0:02:56]} 3. d4 {[%clk 0:02:41.7]} 3... cxd4 {[%clk 0:02:57.1]} 4.
Nxd4 {[%clk 0:02:43.3]} 4... Nf6 {[%clk 0:02:58.6]} 5. f3 {[%clk 0:02:29.1]}
5... e5 {[%clk 0:02:59.1]} 6. Nb3 {[%clk 0:02:28.1]} 6... Be7 {[%clk 0:02:59.8]}
7. c4 {[%clk 0:02:28.9]} 7... a5 {[%clk 0:03:00]} 8. Nc3 {[%clk 0:02:29.7]} 8...
a4 {[%clk 0:03:00.1]} 9. Nd2 {[%clk 0:02:29]} 9... Qa5 {[%clk 0:02:56.5]} 10.
Ndb1 {[%clk 0:02:24.4]} 10... O-O {[%clk 0:02:54.2]} 11. Bd3 {[%clk 0:02:19.3]}
11... Nc6 {[%clk 0:02:53.5]} 12. O-O {[%clk 0:02:18.7]} 12... Bd8 {[%clk
0:02:51.6]} 13. Na3 {[%clk 0:02:09.9]} 13... Bb6+ {[%clk 0:02:51.1]} 14. Kh1
{[%clk 0:02:10.5]} 14... Nd4 {[%clk 0:02:47.6]} 15. Ncb5 {[%clk 0:02:07.1]}
15... Bc5 {[%clk 0:02:44.4]} 16. Bd2 {[%clk 0:02:07.4]} 16... Qb6 {[%clk
0:02:44.3]} 17. Rb1 {[%clk 0:02:00.2]} 17... Nh5 {[%clk 0:02:43]} 18. Nxd4
{[%clk 0:01:48.3]} 18... Bxd4 {[%clk 0:02:42.3]} 19. Nc2 {[%clk 0:01:49.9]}
19... Bc5 {[%clk 0:02:41]} 20. b4 {[%clk 0:01:50.6]} 20... axb3 {[%clk 0:02:37]}
21. axb3 {[%clk 0:01:51.9]} 21... Qc7 {[%clk 0:02:34.5]} 22. b4 {[%clk 0:01:52]}
22... Bb6 {[%clk 0:02:35.4]} 23. Ne3 {[%clk 0:01:45.4]} 23... Nf4 {[%clk
0:02:27.3]} 24. Qc2 {[%clk 0:01:35.7]} 24... Ra3 {[%clk 0:02:19]} 25. Nd5 {[%clk
0:01:33.4]} 25... Nxd5 {[%clk 0:02:14.8]} 26. exd5 {[%clk 0:01:35]} 26... f5
{[%clk 0:02:11.2]} 27. c5 {[%clk 0:01:35]} 27... dxc5 {[%clk 0:02:11.6]} 28.
bxc5 {[%clk 0:01:36]} 28... Qxc5 {[%clk 0:02:07.4]} 29. Bb4 {[%clk 0:01:37.4]}
29... Qxc2 {[%clk 0:01:51.4]} 30. Bxc2 {[%clk 0:01:33.8]} 30... Ra2 {[%clk
0:01:50.3]} 31. Bxf8 {[%clk 0:01:20.8]} 31... Kxf8 {[%clk 0:01:51.5]} 32. Bxf5
{[%clk 0:01:19.6]} 32... Bxf5 {[%clk 0:01:46.9]} 33. Rxb6 {[%clk 0:01:20]} 33...
Rd2 {[%clk 0:01:47.4]} 34. d6 {[%clk 0:01:17.3]} 34... Bd7 {[%clk 0:01:47.4]}
35. Rxb7 {[%clk 0:01:14.1]} 35... Rxd6 {[%clk 0:01:47.2]} 36. Re1 {[%clk
0:01:12.7]} 36... Kf7 {[%clk 0:01:43.3]} 37. h3 {[%clk 0:01:11.2]} 37... Kf6
{[%clk 0:01:44.1]} 38. Kh2 {[%clk 0:01:07.9]} 38... h6 {[%clk 0:01:34]} 39. Rb4
{[%clk 0:01:04.2]} 39... Rd5 {[%clk 0:01:30.9]} 40. Rb6+ {[%clk 0:01:03.6]}
40... Kf5 {[%clk 0:01:30.4]} 41. Re4 {[%clk 0:01:02.4]} 41... h5 {[%clk
0:01:24.6]} 42. h4 {[%clk 0:01:03.1]} 42... Rc5 {[%clk 0:01:21.1]} 43. Reb4
{[%clk 0:01:03.4]} 43... Bc6 {[%clk 0:01:19.6]} 44. Ra6 {[%clk 0:00:58.5]} 44...
Rc2 {[%clk 0:01:17.1]} 45. Kg3 {[%clk 0:00:55.3]} 45... Bd5 {[%clk 0:01:06.4]}
46. Rb8 {[%clk 0:00:44.4]} 46... e4 {[%clk 0:00:47.3]} 47. Rf8+ {[%clk
0:00:44.2]} 47... Ke5 {[%clk 0:00:47.9]} 48. Re8+ {[%clk 0:00:42]} 48... Kd4
{[%clk 0:00:40]} 49. Ra4+ {[%clk 0:00:40.3]} 49... Ke3 {[%clk 0:00:39.5]} 50.
Raxe4+ {[%clk 0:00:37.3]} 50... Bxe4 {[%clk 0:00:40]} 51. Rxe4+ {[%clk
0:00:38.9]} 51... Kd3 {[%clk 0:00:41.5]} 52. Re7 {[%clk 0:00:40.4]} 52... g6
{[%clk 0:00:39.4]} 53. Re6 {[%clk 0:00:40.9]} 53... Rc5 {[%clk 0:00:31.5]} 54.
Rxg6 {[%clk 0:00:36]} 54... Ke2 {[%clk 0:00:31.5]} 55. Rg5 {[%clk 0:00:33.2]}
55... Rc2 {[%clk 0:00:30.9]} 56. Rxh5 {[%clk 0:00:29.8]} 56... Kf1 {[%clk
0:00:32.8]} 57. Ra5 {[%clk 0:00:22.8]} 57... Rxg2+ {[%clk 0:00:33.5]} 58. Kf4
{[%clk 0:00:23.9]} 58... Rg8 {[%clk 0:00:30.7]} 59. Rg5 {[%clk 0:00:20.7]} 59...
Rh8 {[%clk 0:00:29.5]} 60. Kg4 {[%clk 0:00:21.6]} 60... Kf2 {[%clk 0:00:28.8]}
61. h5 {[%clk 0:00:22.8]} 61... Ke3 {[%clk 0:00:24.3]} 62. Re5+ {[%clk 0:00:23]}
62... Kd4 {[%clk 0:00:25.3]} 63. f4 {[%clk 0:00:24.1]} 63... Rg8+ {[%clk
0:00:26.4]} 64. Rg5 {[%clk 0:00:25.1]} 64... Rh8 {[%clk 0:00:26.7]} 65. Rg6
{[%clk 0:00:26.2]} 65... Kd5 {[%clk 0:00:21.7]} 66. f5 {[%clk 0:00:27.8]} 66...
Ke5 {[%clk 0:00:21.8]} 67. h6 {[%clk 0:00:28.9]} 67... Rh7 {[%clk 0:00:21.1]}
68. Re6+ {[%clk 0:00:29.6]} 68... Kd5 {[%clk 0:00:20.4]} 69. Kg5 {[%clk
0:00:31.2]} 69... Rh8 {[%clk 0:00:22.3]} 70. Re7 {[%clk 0:00:30.8]} 1-0

[Event "*** Titled Tuesday 3|2 Blitz (Early)"]
[Site "Chess.com"]
[Date "2017.01.03"]
[Round "5"]
[White "evgenyermolaev"]
[Black "GrigorGrigorov"]
[Result "0-1"]
[WhiteElo "2395"]
[BlackElo "2501"]
[TimeControl "180+2"]
[EndTime "12:08:20 PST"]
[Termination "GrigorGrigorov won by resignation"]

1. e3 {[%clk 0:00:57.6]} 1... Nf6 {[%clk 0:02:59.6]} 2. d4 {[%clk 0:00:59.2]}
2... c5 {[%clk 0:02:58.9]} 3. c4 {[%clk 0:01:01.1]} 3... cxd4 {[%clk 0:02:57.4]}
4. exd4 {[%clk 0:01:03]} 4... d5 {[%clk 0:02:58.1]} 5. Nc3 {[%clk 0:01:04.3]}
5... Nc6 {[%clk 0:02:57.5]} 6. Nf3 {[%clk 0:01:05.8]} 6... e6 {[%clk 0:02:50.8]}
7. Bg5 {[%clk 0:01:06.8]} 7... Be7 {[%clk 0:02:51.2]} 8. Bxf6 {[%clk 0:01:05.7]}
8... Bxf6 {[%clk 0:02:52]} 9. cxd5 {[%clk 0:01:07.2]} 9... exd5 {[%clk
0:02:52.6]} 10. Be2 {[%clk 0:01:07.1]} 10... O-O {[%clk 0:02:52.2]} 11. O-O
{[%clk 0:01:08.1]} 11... Be6 {[%clk 0:02:51.8]} 12. Rc1 {[%clk 0:01:05.3]} 12...
Qb6 {[%clk 0:02:50.2]} 13. Na4 {[%clk 0:00:54.2]} 13... Qb4 {[%clk 0:02:51]} 14.
a3 {[%clk 0:00:47.4]} 14... Qd6 {[%clk 0:02:51.2]} 15. Nc5 {[%clk 0:00:45.1]}
15... Bc8 {[%clk 0:02:51.9]} 16. b4 {[%clk 0:00:29.6]} 16... b6 {[%clk 0:02:41]}
17. Nb3 {[%clk 0:00:27.2]} 17... Bd7 {[%clk 0:02:42]} 18. Bd3 {[%clk 0:00:26.1]}
18... g6 {[%clk 0:02:38]} 19. Re1 {[%clk 0:00:26.8]} 19... Rfe8 {[%clk
0:02:37.4]} 20. Bb5 {[%clk 0:00:25.5]} 20... Rxe1+ {[%clk 0:02:22.9]} 21. Qxe1
{[%clk 0:00:26.6]} 21... a6 {[%clk 0:01:51.4]} 22. Bxc6 {[%clk 0:00:24.9]} 22...
Bxc6 {[%clk 0:01:52.3]} 23. Ne5 {[%clk 0:00:25.3]} 23... Ba4 {[%clk 0:01:52.5]}
24. Qe3 {[%clk 0:00:21.3]} 24... Bxb3 {[%clk 0:01:46.5]} 25. Rc6 {[%clk
0:00:20.1]} 25... Qe7 {[%clk 0:01:40.6]} 26. Qxb3 {[%clk 0:00:15.9]} 26... Bxe5
{[%clk 0:01:41.1]} 27. dxe5 {[%clk 0:00:17.3]} 27... Qxe5 {[%clk 0:01:41.6]} 28.
Qd1 {[%clk 0:00:11.2]} 28... b5 {[%clk 0:01:33]} 29. Rc5 {[%clk 0:00:12.3]}
29... Rd8 {[%clk 0:01:33]} 30. Rc6 {[%clk 0:00:13.8]} 30... Rd6 {[%clk 0:01:30]}
31. Rxd6 {[%clk 0:00:14.8]} 31... Qxd6 {[%clk 0:01:30.8]} 32. Qd4 {[%clk
0:00:16.5]} 32... Qc6 {[%clk 0:01:27.5]} 33. h3 {[%clk 0:00:15.2]} 33... Qc4
{[%clk 0:01:26.4]} 34. Qe5 {[%clk 0:00:14.9]} 34... Qc1+ {[%clk 0:01:21.1]} 35.
Kh2 {[%clk 0:00:15.8]} 35... Qc6 {[%clk 0:01:18.9]} 36. Qb8+ {[%clk 0:00:15.1]}
36... Kg7 {[%clk 0:01:19.7]} 37. Qe5+ {[%clk 0:00:16.7]} 37... Qf6 {[%clk
0:01:07.5]} 38. Qxd5 {[%clk 0:00:18]} 38... Qxf2 {[%clk 0:01:08.1]} 39. Qd6
{[%clk 0:00:19.6]} 39... Qf6 {[%clk 0:01:08.7]} 40. Qd5 {[%clk 0:00:19.6]} 40...
h5 {[%clk 0:01:08.7]} 41. Qd3 {[%clk 0:00:17]} 41... Qe5+ {[%clk 0:01:07.8]} 42.
Kh1 {[%clk 0:00:17.9]} 42... h4 {[%clk 0:01:06.7]} 43. Qf3 {[%clk 0:00:17.6]}
43... Qf6 {[%clk 0:00:55.2]} 44. Qe4 {[%clk 0:00:18]} 44... g5 {[%clk
0:00:52.9]} 45. Qd3 {[%clk 0:00:14.8]} 45... Qe5 {[%clk 0:00:49.5]} 46. Kg1
{[%clk 0:00:15.5]} 46... Qf4 {[%clk 0:00:44.5]} 47. Qc3+ {[%clk 0:00:14.9]}
47... Qf6 {[%clk 0:00:43.7]} 48. Qe3 {[%clk 0:00:14.3]} 48... Kg6 {[%clk
0:00:42.7]} 49. Qd3+ {[%clk 0:00:15.5]} 49... Kh6 {[%clk 0:00:43]} 50. Qd5
{[%clk 0:00:12.8]} 50... Kg7 {[%clk 0:00:35.9]} 51. Qd3 {[%clk 0:00:12]} 51...
Qb6+ {[%clk 0:00:34.6]} 52. Kh1 {[%clk 0:00:12.4]} 52... Qc6 {[%clk 0:00:31.2]}
53. Qd4+ {[%clk 0:00:12.6]} 53... Qf6 {[%clk 0:00:31.8]} 54. Qd3 {[%clk
0:00:14.1]} 54... Qa1+ {[%clk 0:00:28]} 55. Kh2 {[%clk 0:00:15.6]} 55... Qe5+
{[%clk 0:00:28.1]} 56. Kg1 {[%clk 0:00:16.5]} 56... Kf6 {[%clk 0:00:24.3]} 57.
Qf3+ {[%clk 0:00:16.2]} 57... Ke6 {[%clk 0:00:23.5]} 58. Qc6+ {[%clk 0:00:17.2]}
58... Qd6 {[%clk 0:00:24.6]} 59. Qe8+ {[%clk 0:00:16.5]} 59... Kf6 {[%clk
0:00:24.8]} 60. Qe4 {[%clk 0:00:17]} 60... Qd1+ {[%clk 0:00:24.6]} 61. Kh2
{[%clk 0:00:18]} 61... Qd7 {[%clk 0:00:21.4]} 62. Qf3+ {[%clk 0:00:17.9]} 62...
Qf5 {[%clk 0:00:21.1]} 63. Qc6+ {[%clk 0:00:18.7]} 63... Qe6 {[%clk 0:00:22.1]}
64. Qf3+ {[%clk 0:00:19.4]} 64... Ke5 {[%clk 0:00:23]} 65. Qe3+ {[%clk
0:00:20.3]} 65... Kf5 {[%clk 0:00:21.9]} 66. Qf3+ {[%clk 0:00:21.1]} 66... Kg6
{[%clk 0:00:22.8]} 67. Qd3+ {[%clk 0:00:22.3]} 67... f5 {[%clk 0:00:23.7]} 68.
Qd8 {[%clk 0:00:21.2]} 68... f4 {[%clk 0:00:19.6]} 69. Qd3+ {[%clk 0:00:21.3]}
69... Kf6 {[%clk 0:00:20.1]} 70. Qd4+ {[%clk 0:00:22.3]} 70... Kf5 {[%clk
0:00:21.1]} 71. Qd3+ {[%clk 0:00:23.5]} 71... Kf6 {[%clk 0:00:22.4]} 72. Qd4+
{[%clk 0:00:24.7]} 72... Qe5 {[%clk 0:00:23.8]} 73. Qd8+ {[%clk 0:00:25.7]}
73... Kf5 {[%clk 0:00:23.4]} 74. Qd7+ {[%clk 0:00:26.6]} 74... Ke4 {[%clk
0:00:24.4]} 75. Qc6+ {[%clk 0:00:27.5]} 75... Kd3 {[%clk 0:00:24.1]} 76. Qf3+
{[%clk 0:00:27.5]} 76... Kc2 {[%clk 0:00:24.6]} 77. Qc6+ {[%clk 0:00:27.3]}
77... Kb3 {[%clk 0:00:25.1]} 78. Qf3+ {[%clk 0:00:27.8]} 78... Ka4 {[%clk
0:00:25]} 79. Qd1+ {[%clk 0:00:28.4]} 79... Kxa3 {[%clk 0:00:25.5]} 80. Qd3+
{[%clk 0:00:29.1]} 80... Kxb4 {[%clk 0:00:26.3]} 81. Qd2+ {[%clk 0:00:30.5]}
81... Kc5 {[%clk 0:00:26.9]} 82. Qf2+ {[%clk 0:00:30.3]} 82... Qe3 {[%clk
0:00:27]} 83. Qc2+ {[%clk 0:00:31.3]} 83... Kb6 {[%clk 0:00:27.1]} 84. Qg6+
{[%clk 0:00:31.2]} 84... Ka5 {[%clk 0:00:28.2]} 85. Qg8 {[%clk 0:00:31.8]} 85...
Qg3+ {[%clk 0:00:21.7]} 86. Kg1 {[%clk 0:00:33]} 86... Qe1+ {[%clk 0:00:20.6]}
87. Kh2 {[%clk 0:00:34.4]} 87... Qe5 {[%clk 0:00:22.1]} 88. Qa2+ {[%clk
0:00:34.8]} 88... Kb6 {[%clk 0:00:22.7]} 89. Qg8 {[%clk 0:00:35.5]} 89... b4
{[%clk 0:00:21.2]} 90. Qd8+ {[%clk 0:00:35.7]} 90... Kb5 {[%clk 0:00:20.9]} 91.
Qd7+ {[%clk 0:00:37.1]} 91... Ka5 {[%clk 0:00:21.7]} 92. Qd8+ {[%clk 0:00:38.6]}
92... Ka4 {[%clk 0:00:22.9]} 93. Qd7+ {[%clk 0:00:40.3]} 93... Ka3 {[%clk
0:00:23.8]} 94. Qd3+ {[%clk 0:00:41.9]} 94... Kb2 {[%clk 0:00:23.9]} 95. Qd2+
{[%clk 0:00:41.9]} 95... Kb3 {[%clk 0:00:23.7]} 96. Qd3+ {[%clk 0:00:43.5]}
96... Ka2 {[%clk 0:00:24]} 97. Qxa6+ {[%clk 0:00:44.2]} 97... Kb1 {[%clk
0:00:25.3]} 98. Qd3+ {[%clk 0:00:45.2]} 98... Kb2 {[%clk 0:00:26.2]} 99. Qd2+
{[%clk 0:00:46.6]} 99... Kb3 {[%clk 0:00:26.2]} 100. Qd1+ {[%clk 0:00:48.2]}
100... Ka3 {[%clk 0:00:26.6]} 101. Qd3+ {[%clk 0:00:42.9]} 101... Qc3 {[%clk
0:00:26.3]} 102. Qa6+ {[%clk 0:00:44]} 102... Kb2 {[%clk 0:00:25.9]} 103. Qe2+
{[%clk 0:00:45]} 103... Kc1 {[%clk 0:00:24.7]} 104. Qf1+ {[%clk 0:00:44.7]}
104... Kc2 {[%clk 0:00:24.7]} 105. Qe2+ {[%clk 0:00:46]} 105... Qd2 {[%clk
0:00:24.5]} 106. Qe4+ {[%clk 0:00:46.4]} 106... Kb2 {[%clk 0:00:24]} 107. Qe5+
{[%clk 0:00:47.7]} 107... Qc3 {[%clk 0:00:23.9]} 108. Qe2+ {[%clk 0:00:48.9]}
108... Kb3 {[%clk 0:00:25.3]} 109. Qe6+ {[%clk 0:00:49.7]} 109... Ka3 {[%clk
0:00:25.8]} 110. Qa6+ {[%clk 0:00:50.5]} 110... Kb2 {[%clk 0:00:26.3]} 111. Qe2+
{[%clk 0:00:51.3]} 111... Kc1 {[%clk 0:00:24.3]} 112. Qf1+ {[%clk 0:00:52.1]}
112... Kd2 {[%clk 0:00:25.2]} 113. Qf2+ {[%clk 0:00:53.4]} 113... Kd3 {[%clk
0:00:26]} 114. Qf3+ {[%clk 0:00:54.4]} 114... Kd4 {[%clk 0:00:26.3]} 115. Qf2+
{[%clk 0:00:55.6]} 115... Kd5 {[%clk 0:00:25.3]} 116. Qe2 {[%clk 0:00:52.6]}
116... Qg3+ {[%clk 0:00:24.9]} 117. Kh1 {[%clk 0:00:52.9]} 117... Qe3 {[%clk
0:00:24.8]} 118. Qb5+ {[%clk 0:00:52.8]} 118... Qc5 {[%clk 0:00:25.8]} 119. Qd3+
{[%clk 0:00:51.9]} 119... Ke5 {[%clk 0:00:26.5]} 120. Qe2+ {[%clk 0:00:52]}
120... Kd6 {[%clk 0:00:26]} 121. Qd3+ {[%clk 0:00:52.7]} 121... Kc7 {[%clk
0:00:26.9]} 122. Qh7+ {[%clk 0:00:52.6]} 122... Kb6 {[%clk 0:00:27.7]} 123. Qg6+
{[%clk 0:00:53.9]} 123... Ka5 {[%clk 0:00:28.6]} 124. Qb1 {[%clk 0:00:53.4]}
124... Qd5 {[%clk 0:00:23.1]} 125. Qa1+ {[%clk 0:00:53.3]} 125... Kb5 {[%clk
0:00:23.4]} 126. Qf1+ {[%clk 0:00:50.9]} 126... Ka5 {[%clk 0:00:24.1]} 127. Qa1+
{[%clk 0:00:51.8]} 127... Kb6 {[%clk 0:00:25]} 128. Qf6+ {[%clk 0:00:52.5]}
128... Kb5 {[%clk 0:00:25.5]} 129. Qb2 {[%clk 0:00:45]} 129... b3 {[%clk
0:00:24.9]} 130. Qe2+ {[%clk 0:00:46.1]} 130... Kb4 {[%clk 0:00:23.1]} 131. Qe1+
{[%clk 0:00:47.5]} 131... Kc4 {[%clk 0:00:21.2]} 132. Qc1+ {[%clk 0:00:46]}
132... Kb5 {[%clk 0:00:20.6]} 133. Qc3 {[%clk 0:00:44.5]} 133... f3 {[%clk
0:00:14.4]} 0-1

[Event "*** Titled Tuesday 3|2 Blitz (Early)"]
[Site "Chess.com"]
[Date "2017.01.03"]
[Round "6"]
[White "E-Shaposhnikov"]
[Black "gmsakk"]
[Result "1-0"]
[WhiteElo "2724"]
[BlackElo "2474"]
[TimeControl "180+2"]
[EndTime "12:11:19 PST"]
[Termination "E-Shaposhnikov won by resignation"]

1. e4 {[%clk 0:02:57.3]} 1... c5 {[%clk 0:03:01]} 2. Nf3 {[%clk 0:02:56.6]} 2...
d6 {[%clk 0:03:01.8]} 3. d4 {[%clk 0:02:56.1]} 3... cxd4 {[%clk 0:03:03]} 4.
Nxd4 {[%clk 0:02:58]} 4... Nf6 {[%clk 0:03:04.3]} 5. f3 {[%clk 0:02:56.5]} 5...
e5 {[%clk 0:03:02.3]} 6. Nb3 {[%clk 0:02:56.8]} 6... d5 {[%clk 0:02:57.6]} 7.
Bg5 {[%clk 0:02:57.5]} 7... Be6 {[%clk 0:02:57.8]} 8. Bxf6 {[%clk 0:02:55.2]}
8... gxf6 {[%clk 0:02:58.8]} 9. exd5 {[%clk 0:02:55.4]} 9... Qxd5 {[%clk
0:03:00]} 10. Qxd5 {[%clk 0:02:54]} 10... Bxd5 {[%clk 0:03:01.3]} 11. Nc3 {[%clk
0:02:55.6]} 11... Be6 {[%clk 0:03:01]} 12. O-O-O {[%clk 0:02:48.5]} 12... Nd7
{[%clk 0:02:52.1]} 13. Nb5 {[%clk 0:02:44.2]} 13... Ke7 {[%clk 0:02:51.1]} 14.
Kb1 {[%clk 0:02:45.3]} 14... a6 {[%clk 0:02:49.9]} 15. Nd6 {[%clk 0:02:42.8]}
15... Rb8 {[%clk 0:02:49.6]} 16. Na5 {[%clk 0:02:37.2]} 16... Nc5 {[%clk
0:02:23.4]} 17. Ndxb7 {[%clk 0:02:33.6]} 17... Rxb7 {[%clk 0:02:22.4]} 18. Nc6+
{[%clk 0:02:33.8]} 1-0

[Event "*** Titled Tuesday 3|2 Blitz (Early)"]
[Site "Chess.com"]
[Date "2017.01.03"]
[Round "6"]
[White "pKiLz5Rn9b"]
[Black "evgenyermolaev"]
[Result "1-0"]
[WhiteElo "2489"]
[BlackElo "2389"]
[TimeControl "180+2"]
[EndTime "12:11:43 PST"]
[Termination "pKiLz5Rn9b won by resignation"]

1. e4 {[%clk 0:03:02]} 1... c5 {[%clk 0:03:00.9]} 2. c3 {[%clk 0:03:02.5]} 2...
d6 {[%clk 0:03:00.4]} 3. d4 {[%clk 0:03:03]} 3... Nd7 {[%clk 0:03:02.3]} 4. Nf3
{[%clk 0:03:03.5]} 4... g6 {[%clk 0:03:03.4]} 5. Bd3 {[%clk 0:03:03.9]} 5... Bg7
{[%clk 0:03:04.7]} 6. O-O {[%clk 0:03:05.5]} 6... Ngf6 {[%clk 0:03:05.8]} 7. Re1
{[%clk 0:03:07]} 7... O-O {[%clk 0:03:06.4]} 8. h3 {[%clk 0:03:08.4]} 8... a6
{[%clk 0:03:04.4]} 9. a4 {[%clk 0:03:08.9]} 9... Rb8 {[%clk 0:03:05.1]} 10. a5
{[%clk 0:03:09.3]} 10... e5 {[%clk 0:02:59.7]} 11. dxe5 {[%clk 0:03:08.5]} 11...
dxe5 {[%clk 0:02:58.3]} 12. c4 {[%clk 0:03:09.4]} 12... Re8 {[%clk 0:02:56]} 13.
Nc3 {[%clk 0:03:10.3]} 13... Nf8 {[%clk 0:02:56.8]} 14. Nd5 {[%clk 0:03:11.5]}
14... Nxd5 {[%clk 0:02:56.3]} 15. cxd5 {[%clk 0:03:11.1]} 15... b5 {[%clk
0:02:50.3]} 16. axb6 {[%clk 0:03:11.2]} 16... Qxb6 {[%clk 0:02:51]} 17. Qc2
{[%clk 0:03:09.1]} 17... Bb7 {[%clk 0:02:47.7]} 18. Be3 {[%clk 0:03:08.4]} 18...
Rec8 {[%clk 0:02:47.4]} 19. Nd2 {[%clk 0:03:08.9]} 19... Nd7 {[%clk 0:02:44.4]}
20. Nc4 {[%clk 0:03:09.6]} 20... Qf6 {[%clk 0:02:45.1]} 21. Qd2 {[%clk
0:03:04.8]} 21... Nb6 {[%clk 0:02:44.8]} 22. Rec1 {[%clk 0:02:51.8]} 22... Nxc4
{[%clk 0:02:42.7]} 23. Rxc4 {[%clk 0:02:52.4]} 23... Bf8 {[%clk 0:02:37.7]} 24.
Rac1 {[%clk 0:02:52.6]} 1-0